bitfinex/quotes_ETHUSD_20241106
["timestamp","ask_amount","ask_price","bid_price","bid_amount"]
[1730904412834,3.81417,2621.8,2620.7,0.7798]
[1730904412835,7.30263519,2622.0,2621.4,3.81473]
[1730904413004,6.73211681,2622.0,2621.9,3.81402]
[1730904413204,3.81367,2622.2,2621.6,3.81445]
[1730904413406,3.81367,2622.2,2621.5,0.83438794]
[1730904413407,3.81371,2622.2,2621.9,0.03447023]
[1730904413652,3.81375,2622.1,2621.5,3.8146]
[1730904413947,3.81431,2621.7,2621.6,0.0347137]
[1730904414123,3.82761,2621.7,2621.2,3.81504]
[1730904414320,0.0133,2621.7,2621.6,0.0347137]
[1730904414511,0.0133,2621.7,2621.2,3.81504]
[1730904414707,0.0133,2621.7,2621.6,0.03462754]
[1730904414938,0.0133,2621.7,2620.9,3.81539]
[1730904414939,3.81455,2621.6,2620.9,3.81539]
[1730904415206,3.82761,2621.7,2621.6,0.0347137]
[1730904415406,3.81469,2621.5,2620.8,4.63881]
[1730904415635,3.81469,2621.5,2620.8,4.63879]
[1730904415848,3.81473,2621.5,2620.9,0.03528201]
[1730904416033,0.0133,2621.7,2620.9,0.03528201]
[1730904416344,3.81487,2621.4,2621.0,0.03547654]
[1730904416507,3.81487,2621.4,2620.8,3.81552]
[1730904416711,1.82463519,2621.3,2621.2,3.81504]
[1730904417057,3.81447,2621.6,2620.9,4.58748]
[1730904417238,3.81447,2621.6,2621.2,0.03510093]
[1730904417558,3.81419,2621.8,2621.2,3.81495]
[1730904417749,3.81456,2621.6,2621.3,0.03478991]
[1730904417912,3.8142,2621.8,2621.3,3.81488]
[1730904418108,7.11063519,2621.9,2621.4,0.03488707]
[1730904418346,7.11063519,2621.9,2621.5,3.81458]
[1730904418522,7.11063519,2621.9,2621.5,0.03465979]
[1730904418523,10.92468519,2621.9,2621.5,0.03465979]
[1730904418728,7.11063519,2621.9,2621.5,0.03465979]
[1730904418909,0.0133,2622.4,2621.9,3.81402]
[1730904419111,0.0133,2622.4,2621.8,7.62832]
[1730904419348,0.0133,2622.4,2622.0,0.03466482]
[1730904419512,0.0133,2622.4,2622.0,3.81386]
[1730904419860,0.0133,2622.4,2622.1,0.03410718]
[1730904419861,3.8267,2622.4,2622.1,0.03410718]
[1730904420025,0.0133,2622.4,2622.1,0.03410718]
[1730904420222,0.0133,2622.4,2621.7,3.81431]
[1730904420422,3.8133,2622.4,2621.6,0.7892]
[1730904420620,7.626,2622.6,2621.8,0.03461583]
[1730904420855,3.81392,2622.0,2621.7,0.03490827]
[1730904421009,0.0133,2621.8,2621.0,0.7962]
[1730904421215,3.81497,2621.3,2620.7,3.81565]
[1730904421511,3.81497,2621.3,2620.6,4.612]
[1730904421713,3.81499,2621.3,2620.7,3.81573]
[1730904421942,3.81499,2621.3,2620.8,3.81556]
[1730904422124,3.81472,2621.5,2620.7,3.81566]
[1730904422455,3.81492,2621.3,2620.7,3.81566]
[1730904422625,3.81492,2621.3,2620.8,3.81552]
[1730904422966,4.79415239,2620.9,2620.0,0.1274886]
[1730904423113,3.0133,2620.1,2620.0,0.1274886]
[1730904423309,15.17356219,2620.1,2620.0,0.1274886]
[1730904424228,19.97771458,2620.1,2620.0,0.1274886]
[1730904424553,10.12393519,2620.1,2620.0,0.1274886]
[1730904424759,7.11063519,2620.1,2620.0,0.1274886]
[1730904424912,3.81,2620.2,2620.0,0.1274886]
[1730904425749,3.81664,2620.1,2620.0,0.1274886]
[1730904426126,6.81664,2620.1,2620.0,0.1274886]
[1730904426324,8.260963,2620.1,2620.0,0.1274886]
[1730904426635,6.81664,2620.1,2620.0,0.1274886]
[1730904426848,3.81,2620.2,2620.0,0.1274886]
[1730904427015,3.81,2620.2,2620.1,3.81664]
[1730904427448,3.81516,2621.2,2620.6,3.8158]
[1730904427602,3.82831,2621.3,2620.1,0.0346735]
[1730904427756,3.82831,2621.3,2620.7,0.03662793]
[1730904427757,0.0133,2621.3,2620.7,0.03662793]
[1730904427956,0.0133,2621.3,2620.9,3.81539]
[1730904428297,10.92063519,2621.4,2621.0,3.8152]
[1730904428608,3.81393,2622.0,2621.4,3.81473]
[1730904428767,3.81393,2622.0,2621.1,0.8231]
[1730904428768,3.81424,2621.8,2621.1,0.8692744]
[1730904429099,3.81424,2621.8,2621.0,3.81522]
[1730904429100,7.11063519,2621.7,2621.5,3.81454]
[1730904429273,0.0133,2622.2,2621.6,3.81446]
[1730904429470,0.0133,2622.2,2621.6,4.61919915]
[1730904429802,10.92063519,2622.3,2621.9,3.8139]
[1730904430102,3.81,2622.3,2621.7,3.81427]
[1730904430400,3.81,2622.3,2622.0,3.81387]
[1730904430891,3.81,2622.3,2621.9,4.5827]
[1730904431199,3.81,2622.3,2621.9,0.7688]
[1730904431354,3.81,2622.3,2622.2,3.81359]
[1730904431860,7.11063519,2622.7,2621.9,4.58278]
[1730904431861,3.81311,2622.6,2621.9,4.58278]
[1730904432083,3.81325,2622.5,2621.9,0.7688]
[1730904432290,3.81389,2622.0,2621.2,0.821]
[1730904432504,3.81389,2622.0,2620.8,0.01]
[1730904432505,3.81402,2621.9,2620.8,4.6366]
[1730904432804,3.81402,2621.9,2620.9,3.81537]
[1730904432805,3.81474,2621.5,2620.9,3.81537]
[1730904433092,3.81444,2621.7,2621.1,3.81512]
[1730904433458,3.81444,2621.7,2621.2,0.04222504]
[1730904433652,0.0133,2621.8,2621.2,0.04222504]
[1730904433895,3.81409,2621.9,2621.1,3.81509]
[1730904434077,10.92063519,2622.1,2621.5,3.8146]
[1730904434453,10.92063519,2622.1,2621.6,0.0456209]
[1730904434652,10.92063519,2622.1,2621.0,3.81524]
[1730904434653,3.81444,2621.7,2621.0,3.81524]
[1730904434947,3.0133,2622.0,2621.4,3.81472]
[1730904435108,0.0133,2622.0,2621.4,3.81472]
[1730904435400,3.8149,2621.3,2621.1,0.04232654]
[1730904435601,3.8149,2621.3,2620.8,3.8156]
[1730904435798,3.81463,2621.5,2620.7,3.81576]
[1730904435799,3.81463,2621.5,2621.2,0.04606369]
[1730904436092,3.0,2621.6,2620.7,3.81568]
[1730904436296,3.0,2621.6,2620.6,0.8184]
[1730904436297,3.81556,2620.9,2620.6,0.8184]
[1730904436497,6.82886,2620.9,2620.8,0.04263106]
[1730904436656,6.82886,2620.9,2620.0,0.9458886]
[1730904436657,3.81562,2620.8,2620.7,0.04273258]
[1730904437004,13.93949519,2620.9,2620.0,0.9458886]
[1730904437005,3.81596,2620.6,2620.0,0.9458886]
[1730904437495,4.39394952,2620.8,2620.1,0.03715018]
[1730904437796,4.39394952,2620.8,2620.0,0.1274886]
[1730904437797,3.81577,2620.7,2620.0,0.1274886]
[1730904438001,3.81616,2620.5,2620.0,0.1274886]
[1730904438289,3.8158,2620.7,2620.0,0.1274886]
[1730904438495,7.11063519,2620.9,2620.3,0.8184]
[1730904438682,3.81588,2620.7,2620.3,0.8184]
[1730904438875,3.81578,2620.7,2620.3,0.8184]
[1730904439065,3.81578,2620.7,2620.4,0.04254482]
[1730904439266,10.92622519,2620.9,2620.4,0.04254482]
[1730904439506,7.11063519,2620.9,2620.4,0.04254482]
[1730904439686,7.11063519,2620.9,2620.5,3.81603]
[1730904439994,3.81519,2621.1,2620.6,0.05081009]
[1730904440195,3.81548,2620.9,2620.4,0.46771548]
[1730904440358,3.81519,2621.1,2620.7,0.04608023]
[1730904440557,3.81519,2621.1,2620.5,3.81597]
[1730904440788,3.81,2621.3,2621.1,0.8257]
[1730904440969,3.81441,2621.7,2621.1,4.64089]
[1730904441178,3.81406,2621.9,2621.2,3.86051655]
[1730904441383,3.81432,2621.7,2621.2,0.04552655]
[1730904441595,3.81409,2621.9,2621.2,0.04552655]
[1730904441596,3.81402,2621.9,2621.2,0.04552655]
[1730904441755,0.0133,2622.0,2621.2,0.04552655]
[1730904441958,3.81413,2621.9,2621.3,3.81489]
[1730904442180,0.0133,2622.0,2621.3,3.87039825]
[1730904442381,3.81427,2621.8,2621.3,3.87039825]
[1730904442607,3.0133,2622.0,2621.3,0.05550825]
[1730904444989,14.73063519,2622.1,2621.5,3.8146]
[1730904445188,3.8141,2621.9,2621.4,0.8161]
[1730904445924,14.73063519,2622.1,2621.6,3.81445]
[1730904446135,7.62,2622.1,2621.4,8.44539]
[1730904446370,7.62382,2622.1,2621.4,4.63074]
[1730904446535,7.62382,2622.1,2621.4,8.44541]
[1730904446729,3.81,2622.1,2621.4,0.8161]
[1730904446970,0.39475322,2622.7,2622.2,3.81348]
[1730904447153,0.42074232,2622.7,2622.1,0.7639]
[1730904447332,3.8131,2622.6,2622.1,0.7639]
[1730904447535,3.81339,2622.4,2621.6,4.62263]
[1730904447839,3.82577,2623.0,2621.6,4.62267]
[1730904448069,3.81304,2622.6,2621.6,0.8083]
[1730904448230,0.383577,2622.9,2622.2,3.81354]
[1730904448432,0.383577,2622.9,2621.8,3.81415]
[1730904448433,3.81288,2622.7,2621.8,3.81415]
[1730904448736,3.81288,2622.7,2622.0,3.81377]
[1730904448936,3.383577,2622.9,2621.8,3.81417]
[1730904449136,0.383577,2622.9,2622.3,4.64442]
[1730904449535,4.196257,2622.9,2622.3,0.8311]
[1730904449963,10.92063519,2623.2,2622.3,0.8311]
[1730904450143,10.92063519,2623.2,2622.5,7.62609]
[1730904450475,10.92063519,2623.2,2622.6,3.813]
[1730904452759,3.81207,2623.3,2622.6,3.81293]
[1730904453087,3.0133,2623.6,2622.9,3.81244]
[1730904453283,1.77454152,2623.5,2623.0,3.81235]
[1730904453485,5.58633152,2623.5,2622.9,3.81244]
[1730904453695,1.77454152,2623.5,2622.9,3.81244]
[1730904453998,10.92063519,2623.7,2623.0,0.7833]
[1730904454152,10.92063519,2623.7,2623.2,3.812]
[1730904454760,0.0133,2624.1,2623.7,3.81132]
[1730904455064,3.81,2624.4,2623.9,4.5944]
[1730904455397,3.81,2624.5,2623.9,4.59429]
[1730904455593,4.573329,2624.5,2623.9,8.40534]
[1730904455895,4.573329,2624.5,2624.0,3.81095]
[1730904456052,4.573329,2624.5,2623.9,5.05431]
[1730904456253,4.573329,2624.5,2624.0,3.81088]
[1730904456477,0.0133,2625.0,2624.2,3.81068]
[1730904456663,0.40479512,2625.9,2624.3,3.81041]
[1730904456664,3.80923,2625.2,2624.3,3.81041]
[1730904456854,3.80923,2625.2,2624.2,0.46]
[1730904456855,3.80956,2625.0,2624.4,3.81039]
[1730904457262,3.80923,2625.2,2624.4,3.81039]
[1730904457455,3.80939,2625.1,2624.4,3.81039]
[1730904457680,0.0133,2625.3,2624.2,4.27063]
[1730904457924,3.81,2625.4,2625.0,3.80939]
[1730904458103,3.81,2625.4,2625.3,3.80908]
[1730904458405,3.81,2625.4,2624.3,8.60463239]
[1730904458406,0.762,2625.4,2624.3,0.8003]
[1730904458576,4.57104,2625.4,2624.7,3.80995]
[1730904458785,3.80932,2625.2,2624.5,0.46]
[1730904459503,4.29175875,2625.7,2618.0,0.72738685]
[1730904459726,7.11063519,2625.8,2618.0,0.72738685]
[1730904459727,3.81237,2623.1,2622.5,0.00353857]
[1730904460048,3.81237,2623.1,2621.7,0.01]
[1730904460049,3.0,2623.0,2621.7,0.01]
[1730904460494,3.0,2623.0,2621.4,0.01]
[1730904460686,3.81257,2622.9,2621.4,0.01]
[1730904460985,3.0,2622.6,2621.1,0.01]
[1730904461217,3.0,2622.6,2621.0,0.02]
[1730904461218,3.8133,2622.4,2621.0,0.02]
[1730904461400,3.0,2622.4,2621.2,0.01]
[1730904462695,3.0,2622.4,2621.3,0.8059]
[1730904463789,6.8133,2622.4,2621.3,0.8059]
[1730904463987,8.20569352,2622.4,2621.3,0.8059]
[1730904464425,4.39239352,2622.4,2621.3,0.8059]
[1730904464994,3.81361,2622.2,2621.3,0.8059]
[1730904465644,3.8138,2622.1,2621.3,0.8059]
[1730904465854,3.81419,2621.8,2621.3,0.8059]
[1730904466206,0.38138,2622.0,2620.5,0.8166]
[1730904466426,3.81463,2621.5,2620.5,0.8166]
[1730904466637,7.11063519,2621.9,2620.7,0.01]
[1730904466638,10.92468519,2621.9,2620.7,0.01]
[1730904466844,7.11063519,2621.9,2620.9,0.01]
[1730904467050,7.11063519,2621.9,2620.8,0.8207]
[1730904467051,3.81346,2622.3,2621.2,0.8107]
[1730904467254,0.90158535,2622.3,2621.2,0.8107]
[1730904467415,3.8139,2622.0,2621.2,0.8107]
[1730904467763,3.81409,2621.9,2621.2,0.8107]
[1730904467914,10.92472519,2621.9,2621.2,0.8107]
[1730904468249,3.8149,2621.3,2621.2,0.8107]
[1730904468408,3.81507,2621.2,2620.5,0.005]
[1730904468611,3.8149,2621.3,2620.5,0.7672]
[1730904468863,3.8152,2621.1,2620.5,0.7672]
[1730904469049,3.81561,2620.9,2620.5,0.7672]
[1730904469220,3.81577,2620.7,2620.5,0.005]
[1730904469423,3.81561,2620.9,2620.5,0.005]
[1730904469616,3.81564,2620.8,2620.5,0.005]
[1730904469944,3.81563,2620.8,2620.5,0.005]
[1730904470358,3.81524,2621.1,2620.5,0.005]
[1730904470910,3.81534,2621.0,2620.5,0.005]
[1730904471111,11.76847819,2621.3,2620.5,0.005]
[1730904471364,7.11063519,2621.3,2620.6,0.7574]
[1730904471561,7.11063519,2621.3,2620.7,0.07630769]
[1730904471712,3.81,2621.4,2620.7,0.07630769]
[1730904472558,3.81,2621.4,2620.6,0.7574]
[1730904472819,3.81491,2621.3,2620.6,0.7574]
[1730904473100,3.81521,2621.1,2620.6,0.7574]
[1730904473996,3.81,2621.4,2620.6,0.7574]
[1730904474560,14.73469519,2621.9,2620.8,0.8103]
[1730904475070,10.92063519,2621.9,2620.8,0.8103]
[1730904475299,12.47222671,2621.9,2620.8,0.8103]
[1730904475459,3.81478,2621.4,2620.8,0.8103]
[1730904475659,3.81,2621.5,2620.8,0.8103]
[1730904475660,3.8152,2621.1,2620.8,0.8103]
[1730904475860,3.81546,2621.0,2620.5,0.8153]
[1730904476376,3.81515,2621.2,2620.5,0.8153]
[1730904476580,0.763005,2621.1,2620.5,0.8153]
[1730904476926,3.81,2621.5,2620.5,0.8153]
[1730904477433,3.81542,2621.0,2620.5,0.005]
[1730904477575,3.8157,2620.8,2620.5,0.005]
[1730904477775,7.11063519,2621.1,2620.5,0.005]
[1730904478728,3.81534,2621.0,2620.5,0.005]
[1730904478895,1.09259752,2620.9,2620.5,0.005]
[1730904480223,3.81592,2620.6,2620.5,0.005]
[1730904480393,4.90816752,2620.9,2620.5,0.005]
[1730904480598,3.81565,2620.8,2620.5,0.005]
[1730904480799,4.62472,2620.6,2620.5,0.005]
[1730904481129,6.00318424,2620.6,2620.5,0.005]
[1730904481286,9.00318424,2620.6,2620.5,0.005]
[1730904482114,9.56318424,2620.6,2620.5,0.005]
[1730904482283,10.11405462,2620.6,2620.5,0.005]
[1730904482480,10.11405462,2620.6,2620.0,0.1274886]
[1730904482481,7.60624,2620.1,2620.0,0.1274886]
[1730904482711,12.85915019,2620.1,2620.0,0.1274886]
[1730904483631,9.04251019,2620.1,2620.0,0.1274886]
[1730904483945,7.11063519,2620.1,2620.0,0.1274886]
[1730904484237,3.81,2620.7,2620.0,0.9341886]
[1730904486850,7.11063519,2621.0,2620.1,0.07632943]
[1730904487010,7.11063519,2621.0,2620.2,0.7959]
[1730904487213,3.81,2621.5,2620.3,0.0763204]
[1730904487542,0.46154,2621.4,2620.4,0.7769]
[1730904487712,0.46154,2621.4,2620.5,0.0763076]
[1730904487914,0.46154,2621.4,2620.6,0.7769]
[1730904488222,3.81,2621.5,2620.5,0.01]
[1730904488399,3.81,2621.5,2620.8,0.7769]
[1730904488599,3.81,2621.5,2620.9,0.07629649]
[1730904488822,3.81,2621.5,2620.8,0.7769]
[1730904489236,3.81377,2622.1,2620.8,0.7769]
[1730904489237,3.81384,2622.1,2620.8,0.7769]
[1730904489458,0.8136,2622.3,2620.8,0.7769]
[1730904489459,3.81425,2621.8,2620.8,0.7769]
[1730904489747,0.762737,2622.0,2620.8,0.7769]
[1730904489748,3.81433,2621.7,2620.8,0.7769]
[1730904490605,3.81408,2621.9,2620.8,0.7769]
[1730904490834,7.62823,2621.9,2620.8,0.7769]
[1730904491138,3.81462,2621.5,2620.8,0.7769]
[1730904491489,7.6249,2621.3,2620.8,0.7769]
[1730904491789,3.81,2621.3,2620.8,0.7769]
[1730904492251,0.8390967,2621.8,2620.0,0.1374886]
[1730904492252,10.92063519,2621.8,2620.9,0.07630834]
[1730904492420,10.92063519,2621.8,2620.7,0.01]
[1730904492421,1.84936352,2621.7,2620.7,0.7737]
[1730904492626,10.92063519,2621.8,2620.7,0.7737]
[1730904492972,3.81,2621.8,2620.9,0.7737]
[1730904493179,3.81,2621.8,2621.0,0.07629412]
[1730904493455,3.81346,2622.3,2621.0,0.7737]
[1730904493765,3.81,2622.4,2621.0,0.7737]
[1730904493766,0.762346,2622.2,2621.0,0.7737]
[1730904493948,3.81344,2622.3,2621.0,0.7737]
[1730904494362,3.81,2622.4,2621.1,0.89208603]
[1730904494525,3.81,2622.4,2621.1,0.8158]
[1730904494862,3.81371,2622.2,2621.1,0.8158]
[1730904495080,3.81388,2622.0,2621.1,0.8158]
[1730904495221,3.81476,2621.4,2621.1,0.8158]
[1730904495422,3.81476,2621.4,2619.9,0.06724703]
[1730904495423,3.81554,2620.9,2620.1,0.7747]
[1730904496236,3.81565,2620.8,2620.1,0.7747]
[1730904496562,3.81554,2620.9,2620.1,0.7747]
[1730904497071,0.7957,2621.2,2620.1,0.7747]
[1730904497362,0.79063352,2621.1,2620.1,0.7747]
[1730904497922,3.81535,2621.0,2620.1,0.7747]
[1730904498268,0.79063352,2621.1,2620.1,0.7747]
[1730904498420,7.63172,2620.7,2620.1,0.7747]
[1730904498621,7.63173,2620.7,2620.1,0.7747]
[1730904498822,0.844533,2620.6,2620.1,0.7747]
[1730904499031,3.81608,2620.5,2620.1,0.7747]
[1730904499473,4.660463,2620.6,2620.1,0.7747]
[1730904499991,3.81651,2620.2,2619.8,0.821]
[1730904500133,0.381651,2620.1,2619.8,0.821]
[1730904500333,4.198291,2620.1,2619.8,0.821]
[1730904500567,4.198291,2620.1,2619.7,0.005]
[1730904500568,4.948591,2620.1,2619.7,0.005]
[1730904501381,4.198291,2620.1,2619.7,0.005]
[1730904501553,11.76516819,2620.6,2619.7,0.005]
[1730904501741,3.81651,2620.2,2619.7,0.005]
[1730904501934,3.81664,2620.1,2619.7,0.005]
[1730904502172,3.81628,2620.4,2619.7,0.005]
[1730904502334,11.76516819,2620.6,2620.0,0.9442886]
[1730904502335,10.92063519,2620.6,2620.0,0.9442886]
[1730904502536,7.11063519,2620.6,2620.0,0.9442886]
[1730904502768,3.81,2620.9,2620.0,0.9442886]
[1730904502968,0.762538,2620.8,2620.0,0.9442886]
[1730904504178,3.81,2620.9,2620.0,0.9442886]
[1730904504541,3.81,2620.9,2620.1,0.07632482]
[1730904504878,4.60596352,2621.1,2620.2,0.8276]
[1730904505084,1.17163987,2621.0,2620.2,0.8276]
[1730904505237,3.8156,2620.9,2620.2,0.8276]
[1730904505431,1.17163987,2621.0,2620.2,0.8276]
[1730904505647,4.98709987,2621.0,2620.2,0.8276]
[1730904505956,0.88023699,2620.9,2620.2,0.8276]
[1730904506482,3.81652,2620.2,2620.0,0.0774886]
[1730904506682,3.81635,2620.3,2620.0,0.0774886]
[1730904506836,3.81611,2620.5,2620.0,0.0774886]
[1730904507033,1.09267452,2620.4,2620.0,0.0774886]
[1730904507342,3.81664,2620.1,2620.0,0.0774886]
[1730904507542,3.81644,2620.3,2620.0,0.0774886]
[1730904507758,3.8165,2620.2,2620.0,0.0774886]
[1730904507962,3.81644,2620.3,2620.0,0.0774886]
[1730904508145,1.09267452,2620.4,2620.0,0.0774886]
[1730904508146,7.11063519,2620.6,2620.1,0.8143]
[1730904508363,3.81523,2621.1,2620.2,0.07633254]
[1730904508569,3.81499,2621.3,2620.3,0.7525]
[1730904508882,14.73533519,2621.5,2620.3,0.7525]
[1730904508883,3.81529,2621.1,2620.3,0.7525]
[1730904509082,10.92063519,2621.5,2620.3,0.7525]
[1730904509083,3.81593,2620.6,2620.3,0.7525]
[1730904509296,3.8165,2620.2,2620.1,0.7968]
[1730904509438,3.81637,2620.3,2620.1,0.7968]
[1730904509633,3.81662,2620.2,2620.0,0.0774886]
[1730904509841,4.579939,2620.1,2620.0,0.0774886]
[1730904510088,3.81664,2620.1,2620.0,0.0774886]
[1730904510266,6.81664,2620.1,2620.0,0.0774886]
[1730904510985,7.63024,2620.1,2620.0,0.0774886]
[1730904511150,6.81664,2620.1,2620.0,0.0774886]
[1730904511484,9.14101852,2620.1,2620.0,0.0774886]
[1730904511651,9.92101852,2620.1,2620.0,0.0774886]
[1730904512069,8.59101852,2620.1,2620.0,0.0774886]
[1730904512460,10.75385557,2620.1,2620.0,0.0774886]
[1730904512774,10.17881852,2620.1,2620.0,0.0774886]
[1730904512988,3.83708,2619.8,2619.7,0.005]
[1730904513139,9.310481,2619.8,2619.7,0.005]
[1730904513340,3.81779,2619.4,2618.0,0.8078]
[1730904513539,3.81856,2618.8,2618.0,0.8078]
[1730904513955,3.8183,2619.0,2618.0,0.8078]
[1730904514343,3.0,2619.1,2618.0,0.8078]
[1730904514666,3.81802,2619.2,2618.1,0.07638499]
[1730904514983,7.11063519,2619.4,2618.2,0.7907]
[1730904515145,1.82463519,2619.4,2618.4,0.7907]
[1730904515339,4.960551,2619.8,2618.6,0.7907]
[1730904515541,0.8770551,2619.7,2618.8,0.7673]
[1730904515746,1.143401,2619.8,2618.8,0.7673]
[1730904515947,1.143401,2619.8,2618.9,0.07636011]
[1730904516156,3.81,2619.9,2619.0,0.7673]
[1730904516599,3.81,2619.9,2619.2,0.8127]
[1730904516884,3.81609,2620.5,2619.4,0.8127]
[1730904517178,10.92605519,2621.0,2619.6,0.8127]
[1730904517387,4.90809552,2620.9,2619.6,0.7913]
[1730904517731,3.81,2621.3,2619.9,0.01]
[1730904517991,3.81,2621.3,2620.3,0.01]
[1730904518192,3.8142,2621.8,2620.4,0.7788]
[1730904518484,3.81433,2621.7,2620.4,0.7788]
[1730904518785,3.81446,2621.6,2620.4,0.7788]
[1730904518988,3.8148,2621.4,2620.4,0.7788]
[1730904519280,4.196156,2621.5,2620.4,0.7788]
[1730904519574,0.381446,2621.5,2620.5,0.07631467]
[1730904519780,0.381446,2621.5,2620.6,0.7932]
[1730904519990,3.81408,2621.9,2620.6,0.7932]
[1730904520137,3.81442,2621.7,2620.6,0.7932]
[1730904520344,3.81,2621.3,2620.3,0.7932]
[1730904520741,3.81419,2621.8,2620.5,0.7932]
[1730904520995,3.81414,2621.9,2620.5,0.7932]
[1730904521361,3.81463,2621.5,2620.5,0.7932]
[1730904521590,3.81501,2621.3,2620.5,0.7932]
[1730904521913,0.381501,2621.2,2620.5,0.7932]
[1730904523117,3.81436,2621.7,2620.5,0.7932]
[1730904523283,3.81407,2621.9,2620.5,0.7932]
[1730904523822,5.00115282,2622.0,2620.5,0.7932]
[1730904523971,1.18723282,2622.0,2620.5,0.7932]
[1730904524175,0.7932,2622.5,2621.0,4.79415239]
[1730904524407,0.7932,2622.5,2621.3,0.01]
[1730904524611,15.54671519,2623.0,2621.4,0.7608]
[1730904524612,10.92063519,2623.0,2621.4,0.7608]
[1730904524795,3.81362,2622.2,2621.4,0.7608]
[1730904525317,0.767,2622.5,2621.4,0.7608]
[1730904525466,3.81397,2622.0,2621.4,0.7608]
[1730904525676,7.11063519,2622.4,2621.4,0.7608]
[1730904525979,3.81431,2621.8,2621.4,0.7608]
[1730904526180,7.62862,2621.8,2621.4,0.7608]
[1730904526381,7.62862,2621.8,2620.3,0.7963]
[1730904526382,3.81448,2621.6,2620.3,0.7963]
[1730904526615,3.0,2621.5,2620.3,0.7963]
[1730904526825,3.81572,2620.8,2620.3,0.7963]
[1730904527004,3.81519,2621.1,2620.3,0.7963]
[1730904527171,3.0,2621.0,2620.3,0.7963]
[1730904527374,7.62494,2621.3,2620.3,0.7963]
[1730904527375,3.81,2621.3,2620.3,0.7963]
[1730904527808,7.62493,2621.3,2620.3,0.7963]
[1730904528012,0.8306386,2621.2,2620.3,0.7963]
[1730904529822,3.81,2621.3,2620.3,0.7963]
[1730904530117,3.81,2621.9,2620.3,0.8063]
[1730904530480,3.81417,2621.8,2620.3,0.8063]
[1730904531577,10.92063519,2622.3,2620.6,4.79415239]
[1730904531774,1.47340152,2622.2,2620.8,0.7539]
[1730904532277,1.47340152,2622.2,2620.8,0.7639]
[1730904532757,1.47340152,2622.2,2621.0,0.8051]
[1730904533089,3.81,2622.3,2621.1,0.88788422]
[1730904533295,3.81,2622.3,2621.1,3.08628422]
[1730904533579,3.81288,2622.7,2621.4,0.8116]
[1730904533811,3.81277,2622.8,2621.3,0.01]
[1730904533812,3.81262,2622.9,2621.5,0.07627665]
[1730904534019,3.81252,2623.0,2621.6,0.8116]
[1730904534020,4.575324,2622.8,2621.6,0.8116]
[1730904534205,3.8125,2623.0,2621.7,0.88697487]
[1730904534412,14.73295519,2623.1,2621.7,0.8107]
[1730904534720,14.73295519,2623.1,2621.9,0.8107]
[1730904534721,3.81,2623.1,2621.9,0.8107]
[1730904535011,3.81,2623.1,2622.0,0.8107]
[1730904535318,3.81148,2623.7,2622.0,0.8107]
[1730904535684,0.52860589,2623.6,2622.0,0.8107]
[1730904536025,3.81195,2623.4,2622.0,0.8107]
[1730904536323,3.81179,2623.5,2622.0,0.8107]
[1730904536807,3.81213,2623.2,2622.0,0.8107]
[1730904536980,3.81296,2622.7,2622.0,0.8107]
[1730904537184,0.762213,2623.1,2622.0,0.8107]
[1730904537185,3.81303,2622.6,2622.0,0.8107]
[1730904537591,6.81278,2622.8,2622.0,0.8107]
[1730904537795,3.0,2622.8,2622.0,0.8107]
[1730904538026,3.81252,2623.0,2622.0,0.8107]
[1730904538225,4.2700533,2622.9,2622.0,0.8107]
[1730904538520,0.4574733,2622.9,2622.0,0.8107]
[1730904539592,0.762213,2623.1,2621.5,0.08626787]
[1730904539593,0.762213,2623.1,2622.2,0.7923]
[1730904539781,4.574493,2623.1,2622.2,0.7923]
[1730904540439,0.762213,2623.1,2622.2,0.7923]
[1730904540983,3.81266,2622.9,2622.2,0.7923]
[1730904541182,0.762213,2623.1,2622.2,0.7923]
[1730904541413,4.574493,2623.1,2621.9,0.01]
[1730904541597,3.81285,2622.8,2622.3,0.7834]
[1730904541805,0.3762213,2623.0,2622.3,0.7834]
[1730904542024,3.81244,2623.0,2622.3,0.7834]
[1730904542382,3.8126,2622.9,2622.3,0.7834]
[1730904543022,3.81242,2623.0,2622.3,0.7834]
[1730904543185,6.81265,2622.9,2622.3,0.7834]
[1730904543389,1.062507,2622.8,2622.3,0.7834]
[1730904543709,4.875237,2622.8,2622.3,0.7834]
[1730904544022,3.81303,2622.6,2622.3,0.7834]
[1730904544758,3.8133,2622.4,2622.3,0.7834]
[1730904545026,1.062507,2622.8,2622.3,0.7834]
[1730904545196,0.762213,2623.1,2622.3,0.7834]
[1730904545396,0.762213,2623.1,2621.9,0.01]
[1730904545397,3.81,2623.3,2622.4,0.07625501]
[1730904545612,3.81,2623.3,2622.5,0.815]
[1730904545831,3.81112,2623.9,2622.7,0.8072]
[1730904546145,3.81271,2622.8,2622.7,0.8072]
[1730904546286,4.57524,2622.8,2622.7,0.8072]
[1730904546489,3.81308,2622.6,2621.6,0.8332]
[1730904546801,0.76253,2622.8,2621.6,0.8332]
[1730904547034,7.62231,2623.1,2621.6,0.8332]
[1730904547035,3.0,2622.6,2621.6,0.8332]
[1730904547324,3.81431,2621.7,2621.6,0.8332]
[1730904548030,3.81431,2621.7,2620.4,0.7771]
[1730904548243,3.81462,2621.5,2620.4,0.7771]
[1730904548439,3.81462,2621.5,2620.4,0.7871]
[1730904549030,0.381462,2621.4,2620.5,0.8249]
[1730904549201,3.81561,2620.9,2620.5,0.8249]
[1730904549402,3.81616,2620.5,2619.8,0.8249]
[1730904549698,3.81607,2620.5,2619.8,0.8249]
[1730904549907,3.0,2621.2,2619.8,0.8249]
[1730904550108,3.81594,2620.6,2619.8,0.8249]